Workbook

Sheet Basisgegevens
A3: Naam onderneming | B3: Silouette
A4: Jaar boekhouding
A5: Straat | B5: Leest
A6: Nummer | B6: 44
A7: Postcode | B7: 2330
A8: Gemeente | B8: Merksplas
A9: KBO | B9: 123456789
A10: IBAN | B10: BE42733005279254
A11: BIC | B11: KREDBEBB
A13: BTW percentages | D13: Soort inkomsten | G13: Soort uitgaven
A14: Geen | B14: 0 | D14: 1 | E14: Retouche particulier | G14: Goederen
A15: Laag | B15: 0.06 | D15: 2 | E15: Retouche winkel | G15: Diensten
A16: Middel | B16: 0.12 | D16: 3 | E16: Verkopen | G16: Investeringen
A17: Hoog | B17: 0.21 | D17: 4
D18: 5

Sheet Menu
B17: TO DO
B18: - factuur
B19: - factuur laten boeken in verkopen
B20: - afschrijvingstabel
B21: - jaarrekening

Sheet Verkopen
A2: Volgnr | B2: Datum | C2: Maand | D2: Type Verkoop | E2: klant | F2: Bedrag incl BTW | G2: BTW percentage | H2: Bedrag excl BTW | I2: Bedrag BTW | J2: Betaaldatum | K2: Betalingswijze
H3: =ROUND(F3/(1+G3),2) -> 0 | I3: =F3-H3 -> 0
A4: 2013006 | B4: 2013-09-13 | E4: Romence | F4: 29.04 | G4: 0.21 | H4: =ROUND(F4/(1+G4),2) -> 24 | I4: =F4-H4 -> 5.04
A5: 2013006 | B5: 2013-09-13 | E5: Romence | F5: 29.04 | H5: =ROUND(F5/(1+G5),2) -> 29.04 | I5: =F5-H5 -> 0
A6: 2013001 | B6: 2013-01-01 | C6: =MONTH(B6) -> 1 | F6: 121 | G6: 0 | H6: =ROUND(F6/(1+G6),2) -> 121 | I6: =F6-H6 -> 0
A7: 2013002 | B7: 2013-02-01 | C7: =MONTH(B7) -> 2 | F7: 212 | G7: 0.06 | H7: =ROUND(F7/(1+G7),2) -> 200 | I7: =F7-H7 -> 12
A8: 2013003 | B8: 2013-03-01 | C8: =MONTH(B8) -> 3 | F8: 336 | G8: 0.12 | H8: =ROUND(F8/(1+G8),2) -> 300 | I8: =F8-H8 -> 36
A9: 2013004 | B9: 2013-03-01 | C9: =MONTH(B9) -> 3 | F9: 100 | G9: 0.21 | H9: =ROUND(F9/(1+G9),2) -> 82.64 | I9: =F9-H9 -> 17.36
A10: 2013005 | B10: 2013-03-01 | C10: =MONTH(B10) -> 3 | F10: 250 | G10: 0.06 | H10: =ROUND(F10/(1+G10),2) -> 235.85 | I10: =F10-H10 -> 14.15
A11: 2013006 | B11: 2013-09-13 | E11: Romence | F11: 29.04 | G11: 0.21 | H11: =ROUND(F11/(1+G11),2) -> 24 | I11: =F11-H11 -> 5.04
A12: 2013006 | B12: 2013-09-13 | E12: Romence | F12: 29.04 | G12: 0.21 | H12: =ROUND(F12/(1+G12),2) -> 24 | I12: =F12-H12 -> 5.04
A13: 2013006 | B13: 2013-09-13 | E13: Romence | F13: 29.04 | G13: 0.21 | H13: =ROUND(F13/(1+G13),2) -> 24 | I13: =F13-H13 -> 5.04
A14: 2013006 | B14: 2013-09-13 | E14: Romence | F14: 29.04 | G14: 0.21 | H14: =ROUND(F14/(1+G14),2) -> 24 | I14: =F14-H14 -> 5.04
A15: 2013006 | B15: 2013-09-13 | E15: Romence | F15: 29.04 | G15: 0.21 | H15: =ROUND(F15/(1+G15),2) -> 24 | I15: =F15-H15 -> 5.04
A16: 2013006 | B16: 2013-09-13 | E16: Romence | F16: 29.04 | G16: 0.21 | H16: =ROUND(F16/(1+G16),2) -> 24 | I16: =F16-H16 -> 5.04
A17: 2013006 | B17: 2013-09-13 | E17: Romence | F17: 29.04 | G17: 0.21 | H17: =ROUND(F17/(1+G17),2) -> 24 | I17: =F17-H17 -> 5.04
A18: 2013006 | B18: 2013-09-13 | E18: Romence | F18: 29.04 | G18: 0.21 | H18: =ROUND(F18/(1+G18),2) -> 24 | I18: =F18-H18 -> 5.04
A19: 2013006 | B19: 2013-09-13 | E19: Romence | F19: 29.04 | G19: 0.21 | H19: =ROUND(F19/(1+G19),2) -> 24 | I19: =F19-H19 -> 5.04
C20: =MONTH(B20) -> 1 | H20: =ROUND(F20/(1+G20),2) -> 0 | I20: =F20-H20 -> 0
C21: =MONTH(B21) -> 1 | H21: =ROUND(F21/(1+G21),2) -> 0 | I21: =F21-H21 -> 0
C22: =MONTH(B22) -> 1 | H22: =ROUND(F22/(1+G22),2) -> 0 | I22: =F22-H22 -> 0
C23: =MONTH(B23) -> 1 | H23: =ROUND(F23/(1+G23),2) -> 0 | I23: =F23-H23 -> 0
C24: =MONTH(B24) -> 1 | H24: =ROUND(F24/(1+G24),2) -> 0 | I24: =F24-H24 -> 0
C25: =MONTH(B25) -> 1 | H25: =ROUND(F25/(1+G25),2) -> 0 | I25: =F25-H25 -> 0
C26: =MONTH(B26) -> 1 | H26: =ROUND(F26/(1+G26),2) -> 0 | I26: =F26-H26 -> 0
A27: Totaal | F27: =SUM(F5:F26) -> 1309.4 | H27: =SUM(H5:H26) -> 1184.53 | I27: =SUM(I5:I26) -> 124.87

Sheet Aankopen
K1: BTW | P1: Personenbelasting
A2: Volgnr | B2: Datum | C2: Maand | D2: Type | E2: Leverancier | F2: Omschrijving | G2: Bedrag incl BTW | H2: % Privé | I2: BTW % | J2: Bedrag excl BTW | K2: Aftrekbaarheid BTW | L2: Aftrekbare BTW | M2: Kost + niet aftr BTW Diensten | N2: Kost + niet aftr BTW Goederen | O2: Kost + niet aftr BTW Investeringen | P2: Aftrekbaarheid PB | Q2: Aftrekbare kost | R2: Betaaldatum | S2: Betalingswijze
B3: 2013-09-09 | C3: =MONTH(B3) -> 9 | D3: Investeringen | F3: computer | G3: 800 | H3: 0.5 | I3: 0.21 | J3: =ROUND((G3*H3)/(1+I3),2) -> 330.58 | K3: 1 | L3: =((G3*H3)-J3)*K3 -> 69.42 | M3: =IF($D$3="Diensten",($J$3+((($G$3*$H$3)-$J$3)*(1-$K3))),0) -> 0 | N3: =IF($D$3="Goederen",($J$3+((($G$3*$H$3)-$J$3)*(1-$K3))),0) -> 0 | O3: =IF($D$3="Investeringen",($J$3+((($G$3*$H$3)-$J$3)*(1-$K3))),0) -> 330.58 | P3: 1 | Q3: =IF(D3="Diensten",M3,IF(D3="Goederen",N3,0))*P3 -> 0
C4: =MONTH(B4) -> 1
C5: =MONTH(B5) -> 1
C6: 1
C7: 1
C8: 1
C9: 1
C10: 1
C11: 1
C12: 1
C13: 1
C14: 1
C15: 1
C16: 1
C17: 1
C18: 1
C19: 1
C20: 1
C21: 1
A22: Totaal | G22: =SUBTOTAL(109,Aankopen!$G$3:$G$21) -> 800 | J22: =SUBTOTAL(109,Aankopen!$J$3:$J$21) -> 330.58 | L22: =SUBTOTAL(109,Aankopen!$L$3:$L$21) -> 69.42 | M22: =SUBTOTAL(109,Aankopen!$M$3:$M$21) -> 0 | N22: =SUBTOTAL(109,Aankopen!$N$3:$N$21) -> 0 | O22: =SUBTOTAL(109,Aankopen!$O$3:$O$21) -> 330.58 | S22: =SUBTOTAL(103,Aankopen!$S$3:$S$21) -> 0

Sheet Leveranciers
A1: ID | B1: Naam | C1: Voornaam | D1: Straat | E1: Nummer | F1: Postcode | G1: Gemeente | H1: Telefoon | I1: email | J1: Type | K1: Btw-nummer

Sheet Klanten
A1: ID | B1: Naam | C1: Straat | D1: Nummer | E1: Postcode | F1: Gemeente | G1: Telefoon | H1: email | I1: Type | J1: Btw-nummer
B2: Romence | C2: Gasthuisstraat | D2: 1 | E2: 2340 | F2: Beerse
B3: Veja | C3: Veldenbergstraat | D3: 100 | E3: 2330 | F3: Merksplas

Sheet Factuur
F2: FACTUUR
A3: 2013006
B4: =Basisgegevens!B5 &" "& Basisgegevens!B6 -> Leest 44 | E4: Datum | F4: 2013-09-14
B5: =Basisgegevens!B7 &" "& Basisgegevens!B8 -> 2330 Merksplas | E5: Factuurnr. | F5: 2013023
B6: =Basisgegevens!A9 &" "& Basisgegevens!B9 -> KBO 123456789
B7: =Basisgegevens!A10 &" "& Basisgegevens!B10 -> IBAN BE42733005279254
B8: =Basisgegevens!A11 &" "& Basisgegevens!B11 -> BIC KREDBEBB
B10: Factureren aan:
B12: =VLOOKUP(B11,Klanten!B2:F20,2)&" "&VLOOKUP(B11,Klanten!B2:F20,3) -> 
B13: =VLOOKUP(B11,Klanten!B2:F20,4)&" "&VLOOKUP(B11,Klanten!B2:F20,5) -> 
B17: Aantal | C17: Beschrijving | D17: Prijs per eenheid | E17: Excl BTW | F17: Incl. btw
E18: =IF(COUNT(D18)=1,Tabel1[[#This Row],[Aantal]]*Tabel1[[#This Row],[Prijs per eenheid]],"") ->  | F18: =IF(COUNT(Tabel1[[#This Row],[Excl BTW]])=1,Tabel1[[#This Row],[Excl BTW]]*1.21,"") -> 
E19: =IF(COUNT(D19)=1,Tabel1[[#This Row],[Aantal]]*Tabel1[[#This Row],[Prijs per eenheid]],"") ->  | F19: =IF(COUNT(Tabel1[[#This Row],[Excl BTW]])=1,Tabel1[[#This Row],[Excl BTW]]*1.21,"") -> 
E20: =IF(COUNT(D20)=1,Tabel1[[#This Row],[Aantal]]*Tabel1[[#This Row],[Prijs per eenheid]],"") ->  | F20: =IF(COUNT(Tabel1[[#This Row],[Excl BTW]])=1,Tabel1[[#This Row],[Excl BTW]]*1.21,"") -> 
E21: =IF(COUNT(D21)=1,Tabel1[[#This Row],[Aantal]]*Tabel1[[#This Row],[Prijs per eenheid]],"") ->  | F21: =IF(COUNT(Tabel1[[#This Row],[Excl BTW]])=1,Tabel1[[#This Row],[Excl BTW]]*1.21,"") -> 
E22: =IF(COUNT(D22)=1,Tabel1[[#This Row],[Aantal]]*Tabel1[[#This Row],[Prijs per eenheid]],"") ->  | F22: =IF(COUNT(Tabel1[[#This Row],[Excl BTW]])=1,Tabel1[[#This Row],[Excl BTW]]*1.21,"") -> 
E23: =IF(COUNT(D23)=1,Tabel1[[#This Row],[Aantal]]*Tabel1[[#This Row],[Prijs per eenheid]],"") ->  | F23: =IF(COUNT(Tabel1[[#This Row],[Excl BTW]])=1,Tabel1[[#This Row],[Excl BTW]]*1.21,"") -> 
E24: =IF(COUNT(D24)=1,Tabel1[[#This Row],[Aantal]]*Tabel1[[#This Row],[Prijs per eenheid]],"") ->  | F24: =IF(COUNT(Tabel1[[#This Row],[Excl BTW]])=1,Tabel1[[#This Row],[Excl BTW]]*1.21,"") -> 
E25: =IF(COUNT(D25)=1,Tabel1[[#This Row],[Aantal]]*Tabel1[[#This Row],[Prijs per eenheid]],"") ->  | F25: =IF(COUNT(Tabel1[[#This Row],[Excl BTW]])=1,Tabel1[[#This Row],[Excl BTW]]*1.21,"") -> 
E26: =IF(COUNT(D26)=1,Tabel1[[#This Row],[Aantal]]*Tabel1[[#This Row],[Prijs per eenheid]],"") ->  | F26: =IF(COUNT(Tabel1[[#This Row],[Excl BTW]])=1,Tabel1[[#This Row],[Excl BTW]]*1.21,"") -> 
B27: BTW-percentage | C27: 0.21 | E27: =IF(COUNT(D27)=1,Tabel1[[#This Row],[Aantal]]*Tabel1[[#This Row],[Prijs per eenheid]],"") ->  | F27: =IF(COUNT(Tabel1[[#This Row],[Excl BTW]])=1,Tabel1[[#This Row],[Excl BTW]]*1.21,"") -> 
D29: Factuurtotaal incl. BTW | F29: =IF(COUNT(Tabel1[Incl. btw])>0,SUM(Tabel1[Incl. btw]),"") -> 
D30: Btw-bedrag (21%) | F30: =IF(COUNT(F29)=1,F29*C27,"") -> 
D31: Factuurtotaal excl. BTW | F31: =F29-F30 -> 

Sheet Kwartaaloverzicht
A1: Fac

Sheet Jaarrekening

Sheet BTW-aangifte
C2: Kwartaal I | D2: Kwartaal II | E2: Kwartaal III | F2: Kwartaal IV
B3: Vak
A5: Handelingen onderworpen aan het nultarief | B5: 00 | C5: =SUMIFS(Verkopen!$H$15:$H$26,Verkopen!$C$15:$C$26,">=1",Verkopen!$C$15:$C$26,"<4",Verkopen!$G$15:$G$26,"0%") -> 0 | D5: =SUMIFS(Verkopen!$H$15:$H$26,Verkopen!$C$15:$C$26,">=4",Verkopen!$C$15:$C$26,"<7",Verkopen!$G$15:$G$26,"0%") -> 0 | E5: =SUMIFS(Verkopen!$H$15:$H$26,Verkopen!$C$15:$C$26,">=7",Verkopen!$C$15:$C$26,"<10",Verkopen!$G$15:$G$26,"0%") -> 0 | F5: =SUMIFS(Verkopen!$H$15:$H$26,Verkopen!$C$15:$C$26,">=10",Verkopen!$C$15:$C$26,"<12",Verkopen!$G$15:$G$26,"0%") -> 0
A6: Handelingen onderworpen aan de belastingen van 6% | B6: 01 | C6: =SUMIFS(Verkopen!$H$15:$H$26,Verkopen!$C$15:$C$26,">=1",Verkopen!$C$15:$C$26,"<4",Verkopen!$G$15:$G$26,"6%") -> 0 | D6: =SUMIFS(Verkopen!$H$15:$H$26,Verkopen!$C$15:$C$26,">=4",Verkopen!$C$15:$C$26,"<7",Verkopen!$G$15:$G$26,"6%") -> 0 | E6: =SUMIFS(Verkopen!$H$15:$H$26,Verkopen!$C$15:$C$26,">=7",Verkopen!$C$15:$C$26,"<10",Verkopen!$G$15:$G$26,"6%") -> 0 | F6: =SUMIFS(Verkopen!$H$15:$H$26,Verkopen!$C$15:$C$26,">=10",Verkopen!$C$15:$C$26,"<12",Verkopen!$G$15:$G$26,"6%") -> 0
A7: Handelingen onderworpen aan de belastingen van 12% | B7: 02 | C7: =SUMIFS(Verkopen!$H$15:$H$26,Verkopen!$C$15:$C$26,">=1",Verkopen!$C$15:$C$26,"<4",Verkopen!$G$15:$G$26,"12%") -> 0 | D7: =SUMIFS(Verkopen!$H$15:$H$26,Verkopen!$C$15:$C$26,">=4",Verkopen!$C$15:$C$26,"<7",Verkopen!$G$15:$G$26,"12%") -> 0 | E7: =SUMIFS(Verkopen!$H$15:$H$26,Verkopen!$C$15:$C$26,">=7",Verkopen!$C$15:$C$26,"<10",Verkopen!$G$15:$G$26,"12%") -> 0 | F7: =SUMIFS(Verkopen!$H$15:$H$26,Verkopen!$C$15:$C$26,">=10",Verkopen!$C$15:$C$26,"<12",Verkopen!$G$15:$G$26,"12%") -> 0
A8: Handelingen onderworpen aan de belastingen van 21% | B8: 03 | C8: =SUMIFS(Verkopen!$H$15:$H$26,Verkopen!$C$15:$C$26,">=1",Verkopen!$C$15:$C$26,"<4",Verkopen!$G$15:$G$26,"21%") -> 0 | D8: =SUMIFS(Verkopen!$H$15:$H$26,Verkopen!$C$15:$C$26,">=4",Verkopen!$C$15:$C$26,"<7",Verkopen!$G$15:$G$26,"21%") -> 0 | E8: =SUMIFS(Verkopen!$H$15:$H$26,Verkopen!$C$15:$C$26,">=7",Verkopen!$C$15:$C$26,"<10",Verkopen!$G$15:$G$26,"21%") -> 0 | F8: =SUMIFS(Verkopen!$H$15:$H$26,Verkopen!$C$15:$C$26,">=10",Verkopen!$C$15:$C$26,"<12",Verkopen!$G$15:$G$26,"21%") -> 0
A9: Creditnota's op handelingen eerder vermeld in de andere vakken | B9: 49 | C9: 0 | D9: 0 | E9: 0 | F9: 0
A11: Aankopen handelsgoederen, grond- en hulpstoffen | B11: 81 | C11: =SUMIFS(Aankopen!$N$3:$N$21,Aankopen!$C$3:$C$21,">=1",Aankopen!$C$3:$C$21,"<4") -> 0 | D11: =SUMIFS(Aankopen!$N$3:$N$21,Aankopen!$C$3:$C$21,">=4",Aankopen!$C$3:$C$21,"<7") -> 0 | E11: =SUMIFS(Aankopen!$N$3:$N$21,Aankopen!$C$3:$C$21,">=7",Aankopen!$C$3:$C$21,"<10") -> 0 | F11: =SUMIFS(Aankopen!$N$3:$N$21,Aankopen!$C$3:$C$21,">=10",Aankopen!$C$3:$C$21,"<12") -> 0
A12: Diensten, diverse goederen en andere | B12: 82 | C12: =SUMIFS(Aankopen!$M$3:$M$21,Aankopen!$C$3:$C$21,">=1",Aankopen!$C$3:$C$21,"<4") -> 0 | D12: =SUMIFS(Aankopen!$M$3:$M$21,Aankopen!$C$3:$C$21,">=4",Aankopen!$C$3:$C$21,"<7") -> 0 | E12: =SUMIFS(Aankopen!$M$3:$M$21,Aankopen!$C$3:$C$21,">=7",Aankopen!$C$3:$C$21,"<10") -> 0 | F12: =SUMIFS(Aankopen!$M$3:$M$21,Aankopen!$C$3:$C$21,">=10",Aankopen!$C$3:$C$21,"<12") -> 0
A13: Bedrijfsmiddelen | B13: 83 | C13: =SUMIFS(Aankopen!$O$3:$O$21,Aankopen!$C$3:$C$21,">=1",Aankopen!$C$3:$C$21,"<4") -> 0 | D13: =SUMIFS(Aankopen!$O$3:$O$21,Aankopen!$C$3:$C$21,">=4",Aankopen!$C$3:$C$21,"<7") -> 0 | E13: =SUMIFS(Aankopen!$O$3:$O$21,Aankopen!$C$3:$C$21,">=7",Aankopen!$C$3:$C$21,"<10") -> 330.58 | F13: =SUMIFS(Aankopen!$O$3:$O$21,Aankopen!$C$3:$C$21,">=1",Aankopen!$C$3:$C$21,"<4") -> 0
A14: Handelingen ontvangen creditnota's m.b.t. de andere | B14: 85 | C14: 0 | D14: 0 | E14: 0 | F14: 0
A16: Aftrekbare BTW | B16: 59 | C16: =SUMIFS(Aankopen!$L$3:$L$21,Aankopen!$C$3:$C$21,">=1",Aankopen!$C$3:$C$21,"<4") -> 0 | D16: =SUMIFS(Aankopen!$L$3:$L$21,Aankopen!$C$3:$C$21,">=4",Aankopen!$C$3:$C$21,"<7") -> 0 | E16: =SUMIFS(Aankopen!$L$3:$L$21,Aankopen!$C$3:$C$21,">=7",Aankopen!$C$3:$C$21,"<10") -> 69.42 | F16: =SUMIFS(Aankopen!$L$3:$L$21,Aankopen!$C$3:$C$21,">=10",Aankopen!$C$3:$C$21,"<12") -> 0
A17: Aftrekbare BTW wegens verstrekte creditnota's | B17: 64 | C17: 0 | D17: 0 | E17: 0 | F17: 0
A18: Totaal aftrekbare BTW | B18: YY | C18: =ROUND(SUM(C16:C17),2) -> 0 | D18: =ROUND(SUM(D16:D17),2) -> 0 | E18: 69.42 | F18: 0
A20: Verschuldigde BTW op de omzet in vakken 00 01 02 03 | B20: 54 | C20: =SUMIFS(Verkopen!$I$15:$I$26,Verkopen!$C$15:$C$26,">=1",Verkopen!$C$15:$C$26,"<4") -> 0 | D20: =SUMIFS(Verkopen!$I$15:$I$26,Verkopen!$C$15:$C$26,">=4",Verkopen!$C$15:$C$26,"<7") -> 0 | E20: =SUMIFS(Verkopen!$I$15:$I$26,Verkopen!$C$15:$C$26,">=7",Verkopen!$C$15:$C$26,"<10") -> 0 | F20: =SUMIFS(Verkopen!$I$15:$I$26,Verkopen!$C$15:$C$26,">=10",Verkopen!$C$15:$C$26,"<12") -> 0
A21: Verschuldigde BTW op ontvangen creditnota's | B21: 63 | C21: 0 | D21: 0 | E21: 0 | F21: 0
B22: XX | C22: =ROUND(SUM(C20:C21),2) -> 0 | D22: =ROUND(SUM(D20:D21),2) -> 0 | E22: 0 | F22: 0
A24: Verschuldigde BTW | C24: =C22-C18 -> 0 | D24: =D22-D18 -> 0 | E24: -69.42 | F24: 0
A25: - voorschotten
A26: + interesten/boeten
A27: Totaal te betalen BTW | C27: =C24-C25+C26 -> 0 | D27: =D24-D25+D26 -> 0 | E27: -69.42 | F27: 0

Sheet Afschrijvingstabel
A1: Afsc

Sheet vraag
A1: Doel is om een werkblad "factuur" te hebben (zie bijlage) waarin de gegevens worden ingevoerd. Op die pagina zouden dan 3 knoppen komen: factuurboeken, factuurdrukken,factuur leeg maken
A3: Factuurboeken zou er voor moeten zorgen dat de velden F4, F5, B11, F29 en C27 gekopieerd worden naar het werkblad "verkopen".
A4: In dat werkblad zou de eerstvolgende lege rij moeten gezocht worden. Lijkt me het handigst dat er dan een extra rij ingevoerd wordt (dan schuift het totaal steeds mee op).
A5: Vervolgens zouden de gekopieerde cellen in de juiste kolom moeten komen (F4 = datum, F5 = factnr, B11 = klant, F29 = totaalbedrag, C27 = BTW-percentage) geplakt moeten worden.
A8: Let op: | B8: Op het Blad "Verkopen" is rij 2 verborgen, omdat deze rij gebruikt wordt om de formules te kopieren
B9: Er wordt telkens een nieuwe Rij 3 ingevoegd, dus de bestaande gaan telkens een rij omlaag.
B10: De formules van de "Subtotalen" worden ook aangepast als er een rij ingevoegd is.
B11: Volgens mij kun je deze totalen ook gewoon met de SOM formule berekenen, maar dat is aan jezelf.
B13: In je vraag staat dat er op C27 BTW-percentage zou moeten staan ?????
B14: Waarom op "Verkopen" nog eens BTW berekenen, als dit al is gedaan op "Factuur"
B15: Beetje vreemd dat je in "Verkopen" het BTW kunt wijzigen
B17: factuurnummer kun je automatisch laten ophogen, tot een zelf in te stellen maximum, of bij begin nieuw jaar.
A19: Antwoorden
B21: ik heb de "subtotalen" inderdaad vervangen door SOM. In eerste instantie had ik het bereik omgevormd naar een tabel en dan subtotalen gebruikt. Tabellen blijken wel wat beperkingen te geven. Dus heb ik dit terug gewijzigd
B22: C27 heb ik terug gezet en gekoppeld aan de lijst met mogelijke percentages. Je weet maar nooit dat we toch ooit andere percentages krijgen.
B23: In verkopen heb ik terug gerekend omdat de formules er toch staan. Er zijn immers ook kasverkopen die hierin genoteerd worden. (geen factuurnummer)
B24: factuurnummer heb ik automatisch laten verhogen na de knop "nieuw factuur"
B25: datum laat ik ook automatisch invullen
B26: factuur drukken maakt een pdf-aan op een locatie die ik zelf kies (voorlopig een map op gezet maar kan ik dus nog wijzigen)
B27: factuurnummers hebben geen beperking. Ik zelf handmatig jaarlijst terug beginnen van JJJJ0001 of zo
B28: Het is inderdaad niet de bedoeling dat het document groter wordt dan hetgeen het nu is. Vermoedelijk zal dat ook niet gebeuren. Ik weet echter niet goed hoe ik dat moet beperken.
